bitfinex-derivatives/quotes_BNBF0:USTF0_20251027
["timestamp","ask_amount","ask_price","bid_price","bid_amount"]
[1761575676840,0.63569659,1143.4,1139.9,0.85778608]
[1761575677135,0.63569659,1143.4,1140.0,0.85778608]
[1761575678040,0.63569659,1143.3,1140.0,0.85778608]
[1761575678236,0.63569659,1143.3,1140.1,0.85778608]
[1761575679037,0.63569659,1143.2,1140.0,0.85778608]
[1761575679241,0.63569659,1143.1,1140.0,0.85778608]
[1761575679443,0.63569659,1143.2,1140.0,0.85778608]
[1761575680336,0.63569659,1143.1,1140.1,0.85778608]
[1761575680538,0.63569659,1143.2,1140.1,0.85778608]
[1761575680738,0.63569659,1143.1,1139.9,0.85778608]
[1761575680936,0.63569659,1143.0,1139.9,0.85778608]
[1761575681140,0.63569659,1143.2,1139.8,0.85778608]
[1761575681341,0.63569659,1143.3,1139.9,0.85778608]
[1761575681541,0.63569659,1143.3,1140.1,0.85778608]
[1761575681739,0.63569659,1143.3,1140.0,0.85778608]
[1761575681942,0.63569659,1143.4,1140.4,0.64553608]
[1761575682244,0.63569659,1143.4,1140.5,0.64553608]
[1761575683245,0.63569659,1143.3,1140.6,0.64553608]
[1761575683440,0.63569659,1143.3,1140.8,0.64553608]
[1761575683745,0.63569659,1143.4,1140.8,0.64553608]
[1761575684243,0.63569659,1143.3,1140.9,0.64553608]
[1761575685245,0.63569659,1143.2,1141.0,0.64553608]
[1761575686143,0.63569659,1143.1,1141.1,0.64553608]
[1761575687447,0.63569659,1142.9,1141.1,0.64553608]
[1761575687945,0.63569659,1142.7,1141.0,0.64553608]
[1761575690252,0.63569659,1142.8,1141.0,0.64553608]
[1761575690948,0.63569659,1142.8,1140.9,0.64553608]
[1761575697050,0.63569659,1142.8,1140.8,0.64553608]
[1761575699252,0.63569659,1143.0,1140.9,0.64553608]
[1761575699451,0.63569659,1142.9,1141.1,0.64553608]
[1761575702856,0.63569659,1142.9,1141.2,0.64553608]
[1761575704156,0.63569659,1142.9,1141.1,0.64553608]
[1761575704357,0.63569659,1142.9,1141.2,0.64553608]
[1761575705858,0.63569659,1142.9,1141.1,0.64553608]
[1761575706058,0.63569659,1142.8,1141.1,0.64553608]
[1761575706555,0.63569659,1142.8,1141.2,0.64553608]
[1761575707159,0.63569659,1142.7,1141.0,0.64553608]
[1761575707358,0.63569659,1142.5,1140.9,0.64553608]
[1761575708157,0.63569659,1142.5,1141.0,0.64553608]
[1761575709063,0.63569659,1142.6,1141.0,0.64553608]
[1761575709263,0.63569659,1142.5,1141.0,0.64553608]
[1761575709559,0.63569659,1142.6,1141.0,0.64553608]
[1761575711265,0.63569659,1142.5,1141.0,0.64553608]
[1761575711463,0.63569659,1142.4,1140.9,0.64553608]
[1761575711965,0.63569659,1142.5,1140.9,0.64553608]
[1761575713265,0.63569659,1142.4,1140.8,0.64553608]
[1761575715261,0.63569659,1142.3,1140.8,0.64553608]
[1761575715666,0.63569659,1142.2,1140.6,0.64553608]
[1761575715866,0.63569659,1142.1,1140.6,0.64553608]
[1761575716863,0.63569659,1142.0,1140.7,0.64553608]
[1761575717267,0.63569659,1142.0,1140.6,0.64553608]
[1761575717463,0.64246516,1142.0,1140.5,0.65337743]
[1761575717665,0.64246516,1142.2,1140.4,0.65337743]
[1761575718268,0.64246516,1142.2,1140.3,0.65337743]
[1761575718768,0.64246516,1142.3,1140.2,0.65337743]
[1761575719064,0.64246516,1141.6,1140.2,0.65337743]
[1761575719264,0.64246516,1141.7,1140.1,0.65337743]
[1761575720162,0.64246516,1141.8,1140.0,0.65337743]
[1761575721766,0.64246516,1141.9,1140.0,0.65337743]
[1761575722064,0.64246516,1141.8,1140.0,0.65337743]
[1761575722265,0.64246516,1141.9,1139.9,0.65337743]
[1761575723368,0.64246516,1142.1,1140.2,0.65337743]
[1761575723867,0.64246516,1142.1,1140.1,0.65337743]
[1761575724364,0.64246516,1142.0,1140.1,0.65337743]
[1761575724769,0.64246516,1142.1,1140.1,0.65337743]
[1761575727373,0.64246516,1142.2,1140.1,0.65337743]
[1761575727669,0.64246516,1142.1,1140.1,0.65337743]
[1761575728074,0.64246516,1142.2,1140.1,0.65337743]
[1761575728271,0.64246516,1142.6,1140.6,0.65337743]
[1761575728574,0.64246516,1142.6,1140.3,0.65337743]
[1761575731079,0.64246516,1142.9,1140.5,0.65337743]
[1761575731277,0.64246516,1142.6,1140.7,0.65337743]
[1761575733174,1.49006061,1142.8,1140.6,0.65337743]
[1761575733486,0.64246516,1142.8,1140.6,0.65337743]
[1761575733680,0.64246516,1142.8,1140.8,0.65337743]
[1761575735177,0.64246516,1142.8,1140.7,0.65337743]
[1761575737479,0.64246516,1142.8,1140.6,0.65337743]
[1761575738879,0.64246516,1142.4,1140.6,0.65337743]
[1761575739084,0.64246516,1142.3,1140.5,0.65337743]
[1761575739278,0.64246516,1142.4,1140.5,0.65337743]
[1761575740084,0.64246516,1142.3,1140.4,0.65337743]
[1761575743888,0.64246516,1142.4,1140.4,0.65337743]
[1761575744190,0.63908915,1142.3,1140.4,0.65094331]
[1761575744690,0.63908915,1142.3,1140.3,0.65094331]
[1761575745191,0.63908915,1142.9,1140.7,0.65094331]
[1761575745889,0.63908915,1142.8,1140.7,0.65094331]
[1761575746089,0.63908915,1142.7,1140.6,0.65094331]
[1761575746289,0.63908915,1142.5,1140.7,0.65094331]
[1761575746491,0.63908915,1142.6,1140.7,0.65094331]
[1761575747192,0.63908915,1142.5,1140.8,0.65094331]
[1761575747793,0.63908915,1142.6,1140.7,0.65094331]
[1761575748094,0.63908915,1142.6,1140.8,0.65094331]
[1761575748388,0.63908915,1142.6,1140.7,0.65094331]
[1761575749792,0.63908915,1142.4,1140.7,0.65094331]
[1761575750091,0.63908915,1142.4,1140.6,0.65094331]
[1761575750289,0.63908915,1142.3,1140.6,0.65094331]
[1761575750489,0.63908915,1142.2,1140.5,0.65094331]
[1761575751295,0.63908915,1142.3,1140.4,0.65094331]
[1761575751495,0.63908915,1142.0,1140.1,0.65094331]
[1761575751994,0.63908915,1142.1,1140.0,0.65094331]
[1761575753190,0.63908915,1142.0,1140.0,0.65094331]
[1761575754990,0.63908915,1142.1,1140.0,0.65094331]
[1761575756193,0.63908915,1142.0,1140.0,0.65094331]
[1761575758892,0.63908915,1142.1,1140.0,0.65094331]
[1761575759893,0.63908915,1142.0,1140.0,0.65094331]
[1761575761395,0.63908915,1142.2,1139.9,0.65094331]
[1761575763701,0.63908915,1142.0,1140.0,0.65094331]
[1761575763902,0.84759545,1142.2,1139.0,0.15234526]
[1761575763903,0.63908915,1141.9,1139.9,0.65094331]
[1761575764103,0.63908915,1141.9,1139.8,0.65094331]
[1761575767606,0.63908915,1141.8,1139.8,0.65094331]
[1761575769206,0.63908915,1141.5,1139.8,0.65094331]
[1761575769407,0.63908915,1141.5,1139.7,0.65094331]
[1761575770007,0.63908915,1141.5,1139.5,0.65094331]
[1761575772405,0.63908915,1141.4,1139.5,0.65094331]
[1761575773606,0.63908915,1141.5,1139.5,0.65094331]
[1761575775109,0.63908915,1141.4,1139.5,0.65094331]
[1761575775408,0.63908915,1141.5,1139.5,0.65094331]
[1761575775708,0.63908915,1141.6,1139.5,0.65094331]
[1761575778611,0.63908915,1141.7,1139.5,0.65094331]
[1761575781414,0.63908915,1141.6,1139.5,0.65094331]
[1761575781614,0.63908915,1141.7,1139.5,0.65094331]
[1761575784617,0.63908915,1141.7,1139.4,0.65094331]
[1761575785017,0.63908915,1141.8,1139.5,0.65094331]
[1761575785312,0.63908915,1141.8,1139.6,0.65094331]
[1761575785515,0.63908915,1141.9,1139.8,0.65094331]
[1761575786117,0.63908915,1142.0,1139.9,0.65094331]
[1761575786317,0.63908915,1142.1,1139.8,0.65094331]
[1761575786516,0.63908915,1142.3,1140.0,0.65094331]
[1761575786716,0.63908915,1142.4,1140.4,0.65094331]
[1761575788121,0.63908915,1142.5,1140.4,0.65094331]
[1761575788315,0.63908915,1142.6,1140.5,0.65094331]
[1761575789217,0.63908915,1142.7,1140.5,0.65094331]
[1761575789422,0.63908915,1142.8,1140.6,0.65094331]
[1761575790219,0.63908915,1142.8,1140.5,0.65094331]
[1761575790719,0.63908915,1142.9,1140.6,0.65094331]
[1761575790922,0.63908915,1142.9,1140.8,0.65094331]
[1761575791124,0.63908915,1143.0,1140.8,0.65094331]
[1761575792425,0.63908915,1143.2,1140.7,0.65094331]
[1761575792621,0.63908915,1142.8,1140.7,0.65094331]
[1761575793221,0.63908915,1142.9,1140.7,0.65094331]
[1761575794522,0.63908915,1143.0,1140.7,0.65094331]
[1761575795122,0.63908915,1143.1,1140.7,0.65094331]
[1761575795328,0.63908915,1143.1,1140.8,0.65094331]
[1761575796530,0.63908915,1143.2,1140.8,0.65094331]
[1761575798329,0.63908915,1143.3,1140.9,0.65094331]
[1761575801034,0.63908915,1143.4,1140.9,0.65094331]
[1761575801329,0.63908915,1143.4,1140.8,0.65094331]
[1761575802329,0.63908915,1143.4,1140.7,0.65094331]
[1761575802730,0.63908915,1143.4,1140.8,0.65094331]
[1761575803030,0.63908915,1143.4,1140.7,0.65094331]
[1761575804535,0.63908915,1143.5,1140.7,0.65094331]
[1761575804735,0.63908915,1143.4,1140.7,0.65094331]
[1761575805033,0.63908915,1143.5,1140.7,0.65094331]
[1761575805332,0.63908915,1143.3,1140.7,0.65094331]
[1761575805532,0.63908915,1143.3,1140.6,0.65094331]
[1761575805736,0.63908915,1143.2,1140.7,0.65094331]
[1761575806136,0.63908915,1143.3,1140.7,0.65094331]
[1761575806337,0.63908915,1143.3,1140.6,0.65094331]
[1761575806837,0.63908915,1143.3,1140.7,0.65094331]
[1761575809137,0.63908915,1143.4,1140.7,0.65094331]
[1761575810339,0.63908915,1143.5,1140.7,0.65094331]
[1761575811039,0.63908915,1143.6,1140.7,0.65094331]
[1761575811239,0.63908915,1143.6,1140.6,0.65094331]
[1761575811534,0.63908915,1143.5,1140.6,0.65094331]
[1761575811740,0.63908915,1143.5,1140.5,0.65094331]
[1761575812140,0.63908915,1143.5,1140.6,0.65094331]
[1761575812340,0.63908915,1143.5,1140.5,0.65094331]
[1761575813136,0.63908915,1143.2,1140.5,0.65094331]
[1761575814037,0.63908915,1143.1,1140.4,0.65094331]
[1761575814440,0.63908915,1143.2,1140.4,0.65094331]
[1761575814641,0.63908915,1143.2,1140.5,0.65094331]
[1761575815441,0.63908915,1143.3,1140.4,0.65094331]
[1761575815638,0.63908915,1143.1,1140.3,0.65094331]
[1761575815937,0.63908915,1143.2,1140.4,0.65094331]
[1761575817140,0.63908915,1143.2,1140.3,0.65094331]
[1761575817940,0.63908915,1143.2,1139.0,0.15234526]
[1761575817941,0.63908915,1143.2,1140.4,0.65094331]
[1761575818339,0.63908915,1143.3,1140.4,0.65094331]
[1761575818844,0.63908915,1143.2,1140.4,0.65094331]
[1761575819142,0.63908915,1143.3,1140.4,0.65094331]
[1761575819443,0.63908915,1143.2,1140.4,0.65094331]
[1761575820341,0.63908915,1143.2,1140.5,0.65094331]
[1761575821340,0.63908915,1143.4,1140.6,0.65094331]
[1761575821541,0.63908915,1143.3,1140.6,0.65094331]
[1761575822243,0.63908915,1143.4,1140.6,0.65094331]
[1761575822642,0.63908915,1143.8,1140.9,0.65094331]
[1761575823046,0.63908915,1143.9,1140.8,0.65094331]
[1761575823646,0.63908915,1144.0,1140.8,0.65094331]
[1761575824143,0.63908915,1143.8,1141.0,0.65094331]
[1761575824448,0.84759545,1144.7,1141.7,0.65094331]
[1761575824750,0.84759545,1144.8,1141.8,0.65094331]
[1761575825344,0.84759545,1144.8,1141.7,0.65094331]
[1761575827549,0.15230193,1145.0,1141.6,0.65094331]
[1761575829150,0.15230193,1145.0,1141.5,0.65094331]
[1761575829349,0.99989738,1145.0,1141.5,0.65094331]
[1761575829552,0.99989738,1145.0,1141.4,0.65094331]
[1761575829954,0.84759545,1144.8,1141.5,0.65094331]
[1761575830354,0.84759545,1144.7,1141.6,0.65094331]
[1761575830551,0.84759545,1144.6,1141.4,0.65094331]
[1761575831253,0.84759545,1144.6,1141.2,0.85778608]
[1761575831452,0.84264321,1144.7,1141.5,0.64379415]
[1761575832054,0.84264321,1144.8,1141.5,0.64379415]
[1761575832257,0.84264321,1144.7,1141.7,0.64379415]
[1761575832655,0.84264321,1144.9,1141.6,0.64379415]
[1761575833056,0.84264321,1144.8,1141.6,0.64379415]
[1761575833258,0.84264321,1144.9,1141.7,0.64379415]
[1761575833456,0.84264321,1144.8,1141.8,0.64379415]
[1761575833656,0.84264321,1145.1,1141.9,0.64379415]
[1761575833860,0.15221566,1145.4,1142.4,0.64379415]
[1761575834059,0.15221566,1145.4,1142.1,0.64379415]
[1761575834358,0.15221566,1145.4,1139.9,2.1444652]
[1761575834359,0.15221566,1145.4,1142.0,0.64379415]
[1761575834558,0.15221566,1145.4,1141.9,0.64379415]
[1761575835058,0.15221566,1145.4,1142.0,0.64379415]
[1761575835455,0.15221566,1145.4,1141.9,0.64379415]
[1761575838062,0.84264321,1145.1,1141.9,0.64379415]
[1761575838263,0.84264321,1145.0,1142.0,0.64379415]
[1761575838463,0.84264321,1144.8,1141.8,0.64379415]
[1761575839866,0.15221566,1145.4,1141.8,0.64379415]
[1761575840262,0.99485887,1145.4,1141.9,0.64379415]
[1761575840762,0.84264321,1144.8,1141.9,0.64379415]
[1761575840967,0.84264321,1144.7,1141.8,0.64379415]
[1761575841164,0.84264321,1144.9,1141.7,0.64379415]
[1761575841364,0.84264321,1144.8,1141.7,0.64379415]
[1761575842666,0.84264321,1144.7,1141.7,0.64379415]
[1761575842965,0.84264321,1144.6,1141.6,0.64379415]
[1761575843364,0.84264321,1144.5,1141.7,0.64379415]
[1761575843866,0.84264321,1144.5,1141.6,0.64379415]
[1761575844165,0.84264321,1144.5,1141.7,0.64379415]
[1761575844365,0.84264321,1144.4,1141.7,0.64379415]
[1761575844665,0.84264321,1144.5,1141.7,0.64379415]
[1761575845262,0.84264321,1144.4,1141.8,0.64379415]
[1761575845464,0.84264321,1144.5,1141.7,0.64379415]
[1761575846364,0.84264321,1144.3,1141.7,0.64379415]
[1761575846563,1.2713931,1144.5,1141.7,0.64379415]
[1761575846564,0.84264321,1144.0,1141.7,0.64379415]
[1761575847965,0.84264321,1143.9,1141.6,0.64379415]
[1761575848365,0.84264321,1143.8,1141.6,0.64379415]
[1761575849168,0.84264321,1143.9,1141.5,0.64379415]
[1761575849368,0.84264321,1143.7,1141.4,0.64379415]
[1761575849573,0.84264321,1143.8,1141.4,0.64379415]
[1761575849771,0.84264321,1143.9,1141.5,0.64379415]
[1761575849967,0.84264321,1143.9,1141.6,0.64379415]
[1761575850171,0.84264321,1144.1,1141.7,0.64379415]
[1761575850468,0.84264321,1144.0,1141.7,0.64379415]
[1761575850869,0.84264321,1144.0,1141.5,0.64379415]
[1761575851070,0.84264321,1143.8,1141.7,0.64379415]
[1761575851370,0.84264321,1144.3,1141.9,0.64379415]
[1761575851666,0.84264321,1144.4,1141.9,0.64379415]
[1761575852168,0.84264321,1144.3,1141.9,0.64379415]
[1761575853071,0.84264321,1144.2,1141.9,0.64379415]
[1761575853772,0.84264321,1144.3,1141.9,0.64379415]
[1761575853969,0.84264321,1144.2,1141.9,0.64379415]
[1761575854168,0.84264321,1144.3,1141.9,0.64379415]
[1761575855368,0.84264321,1144.2,1141.9,0.64379415]
[1761575855867,0.84264321,1144.3,1141.9,0.64379415]
[1761575856469,0.84264321,1144.6,1141.9,0.64379415]
[1761575862071,0.84264321,1144.5,1141.9,0.64379415]
[1761575863272,0.84264321,1144.5,1141.8,0.64379415]
[1761575863574,0.84264321,1143.8,1141.7,0.64379415]
[1761575864076,0.84264321,1144.7,1141.6,0.64379415]
[1761575865773,0.84264321,1144.6,1141.7,0.64379415]
[1761575867177,0.84264321,1144.5,1141.7,0.64379415]
[1761575867480,0.84264321,1144.4,1141.7,0.64379415]
[1761575868581,0.84264321,1144.0,1141.6,0.64379415]
[1761575868883,0.84264321,1144.0,1141.7,0.64379415]
[1761575870682,0.84264321,1143.9,1141.7,0.64379415]
[1761575871982,0.84264321,1143.8,1141.8,0.64379415]
[1761575872182,0.84264321,1143.8,1141.7,0.64379415]
[1761575872482,0.84264321,1143.8,1141.8,0.64379415]
[1761575872786,0.84264321,1143.8,1141.7,0.64379415]
[1761575873681,0.84264321,1143.6,1141.6,0.64379415]
[1761575873986,0.84264321,1143.4,1141.1,0.64379415]
[1761575874188,0.84264321,1143.3,1140.9,0.64379415]
[1761575874683,0.84264321,1143.2,1140.8,0.64379415]
[1761575874887,0.84264321,1142.8,1140.8,0.64379415]
[1761575875085,0.84264321,1142.8,1140.7,0.64379415]
[1761575875884,0.84264321,1142.6,1140.3,0.64379415]
[1761575876088,0.84264321,1142.7,1140.3,0.64379415]
[1761575876289,0.84264321,1142.8,1140.3,0.64379415]
[1761575877287,0.84264321,1142.9,1140.3,0.64379415]
[1761575877791,0.84264321,1142.8,1140.3,0.64379415]
[1761575878091,0.84264321,1142.6,1140.3,0.64379415]
[1761575878991,0.84264321,1142.7,1140.3,0.64379415]
[1761575879188,0.84264321,1142.7,1140.2,0.64379415]
[1761575879394,0.84264321,1142.8,1140.2,0.64379415]
[1761575879893,0.84264321,1142.9,1140.1,0.64379415]
[1761575880288,0.84264321,1142.9,1140.2,0.64379415]
[1761575880492,0.84264321,1142.9,1140.1,0.64379415]
[1761575880689,0.84264321,1143.0,1140.1,0.64379415]
[1761575881992,0.84264321,1143.1,1140.1,0.64379415]
[1761575883195,0.84264321,1143.2,1140.0,0.79625822]
[1761575883995,0.84264321,1143.1,1139.9,0.64379415]
[1761575884192,0.84264321,1143.2,1139.9,0.64379415]
[1761575884496,0.84264321,1143.2,1139.9,0.79628628]
[1761575884692,0.84264321,1143.2,1140.0,0.64379415]
[1761575885694,0.84264321,1143.1,1140.0,0.64379415]
[1761575886098,0.84264321,1142.9,1140.0,0.64379415]
[1761575886294,0.84264321,1142.9,1139.9,0.79628628]
[1761575886697,0.84264321,1143.3,1139.9,0.15249213]
[1761575886896,0.84264321,1143.2,1139.9,0.15249213]
[1761575887097,0.84264321,1143.3,1139.9,0.15249213]
[1761575888598,0.84264321,1143.3,1139.7,0.64379415]
[1761575888795,0.84264321,1143.7,1139.5,0.64379415]
[1761575889099,0.15221566,1145.4,1139.6,0.64379415]
[1761575889100,0.84264321,1142.8,1139.6,0.64379415]
[1761575889399,0.84264321,1142.9,1139.6,0.64379415]
[1761575889594,0.84264321,1142.8,1139.6,0.64379415]
[1761575889799,0.84264321,1143.5,1139.5,0.64379415]
[1761575889999,0.84264321,1143.6,1139.6,0.64379415]
[1761575890199,0.84264321,1143.6,1139.5,0.64379415]
[1761575890696,0.84264321,1143.5,1139.5,0.64379415]
[1761575890895,0.84264321,1143.1,1139.5,0.64379415]
[1761575891199,0.84264321,1143.2,1139.5,0.64379415]
[1761575892099,0.84264321,1143.2,1139.4,0.79632237]
[1761575892696,0.84264321,1143.1,1139.4,0.79632237]
[1761575896102,0.84264321,1143.2,1139.4,0.79632237]
[1761575896901,0.84264321,1143.2,1139.4,0.15252822]
[1761575898500,0.84264321,1143.4,1139.4,0.79632237]
[1761575898704,0.84264321,1143.3,1139.6,0.64379415]
[1761575898903,0.84264321,1143.3,1139.7,0.64379415]
[1761575899301,0.84264321,1143.5,1139.6,0.64379415]
[1761575899502,0.84264321,1143.6,1139.8,0.64379415]
[1761575899702,0.84264321,1143.8,1139.8,0.64379415]
[1761575900604,0.84264321,1143.5,1139.7,0.64379415]
[1761575900801,0.84264321,1143.4,1139.7,0.64379415]
[1761575901005,0.84264321,1143.5,1139.7,0.64379415]
[1761575901300,0.84264321,1143.4,1139.7,0.64379415]
[1761575901797,1.2713931,1143.6,1139.7,0.64379415]
[1761575901798,0.84264321,1143.5,1139.7,0.64379415]
[1761575902204,0.84264321,1143.5,1139.6,0.64379415]
[1761575902500,0.84264321,1143.5,1139.7,0.64379415]
[1761575903800,0.84264321,1143.5,1139.8,0.64379415]
[1761575904101,0.84264321,1143.6,1139.8,0.64379415]
[1761575904501,0.84264321,1143.7,1139.9,0.64379415]
[1761575904702,0.84264321,1143.6,1139.8,0.64379415]
[1761575908003,0.84264321,1143.5,1139.9,0.64379415]
[1761575909707,0.84264321,1143.4,1139.9,0.64379415]
[1761575909904,0.84264321,1143.5,1139.9,0.64379415]
[1761575910204,0.84264321,1143.7,1140.0,0.64379415]
[1761575910409,0.84264321,1144.0,1140.3,0.64379415]
[1761575910608,0.84264321,1144.3,1140.4,0.64379415]
[1761575911009,0.84264321,1144.3,1140.5,0.64379415]
[1761575911308,0.84264321,1144.3,1140.6,0.64379415]
[1761575911309,0.84264321,1144.1,1140.6,0.64379415]
[1761575912406,0.84264321,1144.1,1140.7,0.64379415]
[1761575912909,0.84264321,1144.1,1140.6,0.64379415]
[1761575913106,0.84264321,1144.2,1140.4,0.64379415]
[1761575914007,0.84264321,1144.5,1140.7,0.64379415]
[1761575916412,1.2713931,1144.8,1140.7,0.64379415]
[1761575916413,0.84264321,1144.4,1140.7,0.64379415]
[1761575918716,0.84264321,1144.3,1140.6,0.64379415]
[1761575919016,0.84264321,1144.2,1140.7,0.64379415]
[1761575919211,0.84264321,1144.3,1140.7,0.64379415]
[1761575919517,0.84264321,1145.2,1140.8,0.64379415]
[1761575920512,0.84264321,1144.6,1140.8,0.64379415]
[1761575920814,0.84264321,1144.2,1141.0,0.64379415]
[1761575921018,0.84264321,1144.1,1140.9,0.64379415]
[1761575921316,0.84264321,1144.1,1141.0,0.64379415]
[1761575923013,0.84264321,1144.1,1140.8,0.85839221]
[1761575923014,0.84264321,1144.0,1140.9,0.64379415]
[1761575923216,0.84264321,1143.9,1140.9,0.64379415]
[1761575923717,0.84264321,1144.1,1140.9,0.64379415]
[1761575924217,0.84264321,1144.1,1141.0,0.64379415]
[1761575924718,0.84264321,1144.1,1140.9,0.64379415]
[1761575926323,0.84264321,1144.1,1141.0,0.64379415]
[1761575927321,0.84264321,1144.0,1140.9,0.64379415]
[1761575927519,0.84264321,1144.0,1141.0,0.64379415]
[1761575927924,0.84264321,1144.0,1140.9,0.64379415]
[1761575928421,0.84264321,1144.0,1140.7,0.64379415]
[1761575930429,0.84264321,1144.0,1140.8,0.64379415]
[1761575931529,0.84264321,1143.9,1140.8,0.64379415]
[1761575932028,0.84264321,1144.0,1140.8,0.64379415]
[1761575932229,0.84264321,1143.9,1140.9,0.64379415]
[1761575932825,0.84264321,1143.8,1140.9,0.64379415]
[1761575933228,0.84264321,1143.7,1141.0,0.64379415]
[1761575933724,0.84264321,1143.6,1141.1,0.64379415]
[1761575934227,0.84264321,1143.7,1141.1,0.64379415]
[1761575935728,0.84264321,1143.8,1141.1,0.64379415]
[1761575937232,0.84264321,1144.0,1141.0,0.64379415]
[1761575937431,0.84264321,1144.1,1141.0,0.64379415]
[1761575940533,0.84264321,1144.2,1141.1,0.64683067]
[1761575940931,0.84264321,1143.9,1141.2,0.64683067]
[1761575941434,0.84264321,1144.0,1141.3,0.64683067]
[1761575942129,0.84264321,1144.3,1141.4,0.64683067]
[1761575942731,0.84264321,1144.4,1141.3,0.64683067]
[1761575942936,0.84264321,1144.5,1141.4,0.64683067]
[1761575943436,0.84264321,1144.5,1141.5,0.64683067]
[1761575943636,0.84264321,1144.4,1141.6,0.64683067]
[1761575943835,0.84264321,1144.4,1141.7,0.64683067]
[1761575944534,0.84264321,1144.6,1141.6,0.64683067]
[1761575944735,0.84264321,1144.5,1141.6,0.64683067]
[1761575945233,0.84264321,1144.6,1141.6,0.64683067]
[1761575948639,0.84264321,1144.7,1141.6,0.64683067]
[1761575950040,0.84264321,1144.9,1141.6,0.64683067]
[1761575952143,0.84264321,1144.8,1141.6,0.64683067]
[1761575953644,0.84264321,1144.5,1141.6,0.64683067]
[1761575953841,0.84264321,1144.4,1141.6,0.64683067]
[1761575954142,0.15221566,1145.4,1141.5,0.64683067]
[1761575954143,0.84264321,1144.3,1141.5,0.64683067]
[1761575955640,0.84264321,1144.4,1141.5,0.64683067]
[1761575955943,0.84264321,1144.6,1141.6,0.64683067]
[1761575957640,0.84264321,1144.5,1141.6,0.64683067]
[1761575959144,0.84264321,1144.5,1141.7,0.64683067]
[1761575959445,0.84264321,1144.5,1141.6,0.64683067]
[1761575961846,0.84264321,1144.4,1141.6,0.64683067]
[1761575962246,0.84264321,1144.3,1141.6,0.64683067]
[1761575962949,0.84264321,1144.4,1141.6,0.64683067]
[1761575963149,0.84264321,1144.3,1141.6,0.64683067]
[1761575964151,0.84264321,1144.2,1141.7,0.64683067]
[1761575964352,0.84264321,1144.3,1141.7,0.64683067]
[1761575964955,0.84264321,1144.2,1141.7,0.64683067]
[1761575965349,0.84264321,1144.2,1141.8,0.64683067]
[1761575965748,0.84264321,1144.2,1141.7,0.64683067]
[1761575966049,0.84264321,1144.1,1141.7,0.64683067]
[1761575966252,0.84264321,1144.1,1141.8,0.64683067]
[1761575966453,0.84264321,1144.2,1141.8,0.64683067]
[1761575966654,0.84264321,1144.1,1141.8,0.64683067]
[1761575966953,0.84264321,1144.0,1141.8,0.64683067]
[1761575967154,0.84264321,1144.0,1141.9,0.64683067]
[1761575967954,0.84264321,1144.1,1141.8,0.64683067]
[1761575968152,0.84264321,1144.2,1141.9,0.64683067]
[1761575969752,0.84264321,1144.3,1141.9,0.64683067]
[1761575970151,0.84264321,1144.2,1141.9,0.64683067]
[1761575970850,0.84264321,1144.2,1142.0,0.64683067]
[1761575971055,0.84264321,1144.2,1141.9,0.64683067]
[1761575972951,0.84264321,1144.1,1141.9,0.64683067]
[1761575973855,0.84264321,1144.2,1141.8,0.64683067]
[1761575976957,0.15221566,1145.4,1142.0,0.64683067]
[1761575976958,0.84264321,1144.1,1142.0,0.64683067]
[1761575978658,0.84264321,1144.2,1142.0,0.64683067]
[1761575979361,0.84264321,1144.1,1142.0,0.64683067]
[1761575979759,0.84264321,1144.2,1142.0,0.64683067]
[1761575982761,0.84264321,1144.1,1142.0,0.64683067]
[1761575984569,0.84264321,1144.1,1141.8,0.85839221]
[1761575984768,0.84264321,1144.1,1142.0,0.65105626]
[1761575985469,0.84264321,1144.2,1142.0,0.65105626]
[1761575987069,0.84264321,1144.1,1142.0,0.65105626]
[1761575987472,0.84264321,1144.2,1142.0,0.65105626]
[1761575989168,0.84264321,1144.2,1142.1,0.65105626]
[1761575991171,0.84264321,1144.1,1142.1,0.65105626]
[1761575993072,0.84264321,1144.2,1142.2,0.65105626]
[1761575993275,0.84264321,1144.1,1142.3,0.65105626]
[1761575995277,0.84264321,1144.0,1142.4,0.65105626]
[1761575995482,0.84264321,1144.0,1142.3,0.65105626]
[1761575997078,0.84264321,1144.0,1142.4,0.65105626]
[1761575997482,0.84264321,1143.8,1142.4,0.65105626]
[1761575997878,0.84264321,1144.4,1142.2,0.65105626]
[1761575998083,0.84264321,1144.6,1142.5,0.65105626]
[1761575998579,0.84264321,1144.5,1142.4,0.65105626]
[1761575999183,0.84264321,1144.4,1142.5,0.65105626]
[1761575999379,0.84264321,1143.9,1142.5,0.65105626]
[1761575999582,0.84264321,1143.9,1142.3,0.85839221]
[1761575999583,0.84264321,1144.4,1142.3,0.65105626]
[1761575999780,0.84264321,1144.5,1142.3,0.65105626]
[1761576000584,0.84264321,1144.4,1142.2,0.65105626]
[1761576000780,0.84264321,1144.2,1142.2,0.65105626]
[1761576000986,0.84264321,1144.1,1142.1,0.65105626]
[1761576001184,0.84264321,1144.1,1142.2,0.65105626]
[1761576001382,0.84264321,1143.7,1142.4,0.65105626]
[1761576002282,0.84264321,1143.8,1142.3,0.65105626]
[1761576003584,0.84264321,1143.9,1142.2,0.65105626]
[1761576003888,0.84264321,1143.8,1142.3,0.65105626]
[1761576004485,0.84264321,1143.6,1142.3,0.65105626]
[1761576005684,0.84264321,1143.7,1142.2,0.65105626]
[1761576006785,0.84264321,1143.6,1142.0,0.65105626]
[1761576008989,0.84264321,1143.5,1142.1,0.65105626]
[1761576010189,0.84264321,1143.5,1142.0,0.65105626]
[1761576012886,0.84264321,1143.4,1142.0,0.65105626]
[1761576013090,0.84264321,1143.1,1141.7,0.65105626]
[1761576013288,0.84264321,1143.2,1141.7,0.65105626]
[1761576014286,0.84264321,1143.2,1141.6,0.65105626]
[1761576014790,0.64002112,1143.0,1141.6,0.65105626]
[1761576016087,0.64002112,1142.9,1141.6,0.65105626]
[1761576016292,0.64002112,1143.0,1141.6,0.65105626]
[1761576016992,0.64002112,1143.1,1141.6,0.65105626]
[1761576020398,0.64002112,1143.1,1141.5,0.65105626]
[1761576020693,0.64002112,1143.1,1141.6,0.65105626]
[1761576021195,0.64002112,1143.1,1141.5,0.65105626]
[1761576023096,0.64002112,1143.2,1141.5,0.65105626]
[1761576023297,0.64002112,1143.3,1141.5,0.65105626]
[1761576023596,0.64002112,1143.3,1141.4,0.65105626]
[1761576024497,0.64002112,1143.4,1141.3,0.65105626]
[1761576024995,0.64002112,1142.9,1141.5,0.65105626]
[1761576025296,0.64002112,1142.9,1141.4,0.65105626]
[1761576025897,0.64002112,1143.0,1141.4,0.65105626]
[1761576026797,0.64002112,1143.1,1141.5,0.65105626]
[1761576027500,0.64002112,1143.3,1141.4,0.65105626]
[1761576027697,0.64002112,1143.4,1141.5,0.65105626]
[1761576029905,0.64002112,1143.4,1141.6,0.65105626]
[1761576030400,0.64002112,1143.4,1141.8,0.65105626]
[1761576030602,0.64002112,1143.5,1141.8,0.65105626]
[1761576031305,0.64002112,1143.5,1141.9,0.65105626]
[1761576031601,0.64002112,1143.6,1141.9,0.65105626]
[1761576032101,0.64002112,1143.7,1141.9,0.65105626]
[1761576032305,0.64002112,1143.7,1141.8,0.65105626]
[1761576033605,0.64002112,1143.6,1141.8,0.65105626]
[1761576033804,0.64002112,1143.5,1141.9,0.65105626]
[1761576034308,0.64002112,1143.6,1141.9,0.65105626]